[Event "Titled Tuesday Blitz June 20 Early 2023"]
[White "Idani, Pouya"]
[Black "Omariev, Maksim"]
[WhiteFideId "12510130"]
[BlackFideId "4193423"]
[WhiteElo "2574"]
[BlackElo "2397"]
[Result "1-0"]
[Round "9"]
[TimeControl "180+2"]
[Date "2023.06.20"]
[WhiteClock "0:01:31"]
[BlackClock "0:00:04"]
[Board "59"]

1. e4 {[%clk 0:03:00]}  c5 {[%clk 0:02:46]} 2. Nf3 {[%clk 0:02:59]}  d6 {[%clk 0:02:46]} 3. d4 {[%clk 0:02:59]}  cxd4 {[%clk 0:02:47]} 4. Nxd4 {[%clk 0:03:00]}  Nf6 {[%clk 0:02:47]} 5. Nc3 {[%clk 0:03:01]}  a6 {[%clk 0:02:48]} 6. h3 {[%clk 0:02:59]}  e6 {[%clk 0:02:48]} 7. g4 {[%clk 0:02:59]}  Nfd7 {[%clk 0:02:47]} 8. g5 {[%clk 0:02:58]}  Be7 {[%clk 0:02:46]} 9. h4 {[%clk 0:02:56]}  b5 {[%clk 0:02:45]} 10. a3 {[%clk 0:02:56]}  Bb7 {[%clk 0:02:46]} 11. Be3 {[%clk 0:02:57]}  Nb6 {[%clk 0:02:23]} 12. Nxe6 {[%clk 0:02:48]}  fxe6 {[%clk 0:02:20]} 13. Qd4 {[%clk 0:02:48]}  Nc4 {[%clk 0:02:00]} 14. Bxc4 {[%clk 0:02:47]}  bxc4 {[%clk 0:02:00]} 15. Qxg7 {[%clk 0:02:39]}  Kd7 {[%clk 0:01:42]} 16. O-O-O {[%clk 0:02:36]}  Kc7 {[%clk 0:00:23]} 17. Na4 {[%clk 0:02:28]}  Nd7 {[%clk 0:00:23]} 18. Qd4 {[%clk 0:02:21]}  d5 {[%clk 0:00:05]} 19. exd5 {[%clk 0:02:14]}  Bxd5 {[%clk 0:00:06]} 20. Nb6 {[%clk 0:02:09]}  Nxb6 {[%clk 0:00:02]} 21. Qxb6+ {[%clk 0:02:06]}  Kd7 {[%clk 0:00:03]} 22. Qd4 {[%clk 0:02:02]}  Qc7 {[%clk 0:00:02]} 23. Rhe1 {[%clk 0:02:00]}  Qc6 {[%clk 0:00:02]} 24. Bd2 {[%clk 0:01:54]}  Kc7 {[%clk 0:00:02]} 25. Qg7 {[%clk 0:01:49]}  Rae8 {[%clk 0:00:01]} 26. Bb4 {[%clk 0:01:48]}  Qd7 {[%clk 0:00:01]} 27. Rxd5 {[%clk 0:01:44]}  Qxd5 {[%clk 0:00:01]} 28. Bxe7 {[%clk 0:01:43]}  Rhg8 {[%clk 0:00:01]} 29. Qf6 {[%clk 0:01:37]}  Rg6 {[%clk 0:00:01]} 30. Qf7 {[%clk 0:01:30]}  Qd7 {[%clk 0:00:01]} 31. Bd6+ {[%clk 0:01:30]}  Kc8 {[%clk 0:00:01]} 32. Qxd7+ {[%clk 0:01:30]}  Kxd7 {[%clk 0:00:01]} 33. Be5 {[%clk 0:01:31]}  Rf8 {[%clk 0:00:02]} 34. f4 {[%clk 0:01:31]}  Rf5 {[%clk 0:00:02]} 35. Re4 {[%clk 0:01:31]}  Kc6 {[%clk 0:00:02]} 36. Rxc4+ {[%clk 0:01:30]}  Kd5 {[%clk 0:00:02]} 37. Rd4+ {[%clk 0:01:31]}  Kc5 {[%clk 0:00:03]} 38. b4+ {[%clk 0:01:31]}  Kb5 {[%clk 0:00:04]} 39. Kb2 {[%clk 0:01:32]}  Rg8 {[%clk 0:00:04]} 40. Kb3 {[%clk 0:01:31]}  Rc8 {[%clk 0:00:04]} 41. c4+ {[%clk 0:01:32]}  Kb6 {[%clk 0:00:05]} 42. Rd6+ {[%clk 0:01:32]}  Kb7 {[%clk 0:00:05]} 43. Rxe6 {[%clk 0:01:32]}  Rf7 {[%clk 0:00:05]} 44. a4 {[%clk 0:01:31]}  Rd7 {[%clk 0:00:06]} 45. c5 {[%clk 0:01:30]}  Rd3+ {[%clk 0:00:06]} 46. Kc4 {[%clk 0:01:31]}  Rh3 {[%clk 0:00:07]} 47. Rb6+ {[%clk 0:01:30]}  Ka7 {[%clk 0:00:06]} 48. b5 {[%clk 0:01:31]}  axb5+ {[%clk 0:00:07]} 49. axb5 {[%clk 0:01:32]}  Rxh4 {[%clk 0:00:08]} 50. Ra6+ {[%clk 0:01:33]}  Kb7 {[%clk 0:00:08]} 51. c6+ {[%clk 0:01:33]}  Rxc6+ {[%clk 0:00:07]} 52. Rxc6 {[%clk 0:01:34]}  h6 {[%clk 0:00:07]} 53. Rxh6 {[%clk 0:01:34]}  Rg4 {[%clk 0:00:06]} 54. Kc5 {[%clk 0:01:33]}  Rg1 {[%clk 0:00:06]} 55. Rh7+ {[%clk 0:01:34]}  Ka8 {[%clk 0:00:06]} 56. Kb6 {[%clk 0:01:32]}  Rh1 {[%clk 0:00:04]} 57. Ra7# {[%clk 0:01:31]} 1-0


[Site "https://www.chess.com"]

[Event "Titled Tuesday Blitz June 20 Early 2023"]
[White "Avinash Ramesh"]
[Black "Topalov, Aleksandar"]
[WhiteFideId "45018340"]
[BlackFideId "925659"]
[WhiteElo "2300"]
[BlackElo "2151"]
[Result "1-0"]
[Round "9"]
[TimeControl "180+2"]
[Date "2023.06.20"]
[WhiteClock "0:01:08"]
[BlackClock "0:00:03"]
[Board "60"]

1. d4 {[%clk 0:03:00]}  Nf6 {[%clk 0:02:59]} 2. c4 {[%clk 0:03:00]}  c5 {[%clk 0:02:59]} 3. dxc5 {[%clk 0:02:59]}  Na6 {[%clk 0:02:52]} 4. Nf3 {[%clk 0:02:58]}  Nxc5 {[%clk 0:02:53]} 5. b3 {[%clk 0:02:57]}  g6 {[%clk 0:02:52]} 6. Bb2 {[%clk 0:02:53]}  Bg7 {[%clk 0:02:52]} 7. g3 {[%clk 0:02:54]}  O-O {[%clk 0:02:52]} 8. Bg2 {[%clk 0:02:55]}  d6 {[%clk 0:02:51]} 9. O-O {[%clk 0:02:55]}  a5 {[%clk 0:02:49]} 10. Nc3 {[%clk 0:02:55]}  Bd7 {[%clk 0:02:49]} 11. Nd4 {[%clk 0:02:44]}  Qb6 {[%clk 0:02:35]} 12. Rb1 {[%clk 0:02:30]}  Rfc8 {[%clk 0:02:30]} 13. Ba1 {[%clk 0:02:29]}  Bc6 {[%clk 0:02:29]} 14. Nxc6 {[%clk 0:02:27]}  bxc6 {[%clk 0:02:29]} 15. Qd2 {[%clk 0:02:26]}  Qb4 {[%clk 0:02:13]} 16. Rfd1 {[%clk 0:02:19]}  Rab8 {[%clk 0:01:49]} 17. h3 {[%clk 0:02:13]}  a4 {[%clk 0:01:42]} 18. bxa4 {[%clk 0:01:57]}  Qxc4 {[%clk 0:01:37]} 19. Rxb8 {[%clk 0:01:57]}  Rxb8 {[%clk 0:01:37]} 20. Bxc6 {[%clk 0:01:57]}  h5 {[%clk 0:01:04]} 21. Qe3 {[%clk 0:01:51]}  Ne6 {[%clk 0:00:33]} 22. Bb5 {[%clk 0:01:44]}  Qc8 {[%clk 0:00:27]} 23. Ne4 {[%clk 0:01:38]}  Nxe4 {[%clk 0:00:23]} 24. Bxg7 {[%clk 0:01:37]}  Kxg7 {[%clk 0:00:19]} 25. Qxe4 {[%clk 0:01:37]}  Ng5 {[%clk 0:00:14]} 26. Qd4+ {[%clk 0:01:35]}  Kg8 {[%clk 0:00:13]} 27. h4 {[%clk 0:01:33]}  Ne6 {[%clk 0:00:13]} 28. Qe3 {[%clk 0:01:30]}  Qc7 {[%clk 0:00:10]} 29. Rc1 {[%clk 0:01:30]}  Nc5 {[%clk 0:00:10]} 30. Rc4 {[%clk 0:01:23]}  e6 {[%clk 0:00:10]} 31. g4 {[%clk 0:01:14]}  Qe7 {[%clk 0:00:08]} 32. gxh5 {[%clk 0:01:11]}  gxh5 {[%clk 0:00:09]} 33. Rxc5 {[%clk 0:01:07]}  dxc5 {[%clk 0:00:07]} 34. Qg3+ {[%clk 0:01:07]}  Kh7 {[%clk 0:00:05]} 35. Qxb8 {[%clk 0:01:08]}  Qxh4 {[%clk 0:00:05]} 36. Bd3+ {[%clk 0:01:07]}  f5 {[%clk 0:00:05]} 37. Qc7+ {[%clk 0:01:07]}  Kg6 {[%clk 0:00:05]} 38. Qg3+ {[%clk 0:01:07]}  Qxg3+ {[%clk 0:00:03]} 39. fxg3 {[%clk 0:01:08]} 1-0


[Site "https://www.chess.com"]

[Event "Titled Tuesday Blitz June 20 Early 2023"]
[White "Shapiro, Viktor"]
[Black "Weishaeutel, Moritz"]
[WhiteFideId "4175700"]
[BlackFideId "12967300"]
[WhiteElo "2212"]
[BlackElo "2301"]
[Result "1-0"]
[Round "9"]
[TimeControl "180+2"]
[Date "2023.06.20"]
[WhiteClock "0:00:32"]
[BlackClock "0:00:00"]
[Board "63"]

1. c4 {[%clk 0:03:00]}  Nf6 {[%clk 0:02:56]} 2. Nc3 {[%clk 0:03:01]}  e6 {[%clk 0:02:56]} 3. Nf3 {[%clk 0:03:01]}  d5 {[%clk 0:02:56]} 4. d4 {[%clk 0:03:01]}  Be7 {[%clk 0:02:55]} 5. Bg5 {[%clk 0:03:01]}  O-O {[%clk 0:02:55]} 6. e3 {[%clk 0:03:02]}  Nbd7 {[%clk 0:02:54]} 7. Qc2 {[%clk 0:03:01]}  b6 {[%clk 0:02:54]} 8. cxd5 {[%clk 0:02:59]}  exd5 {[%clk 0:02:54]} 9. Bd3 {[%clk 0:02:59]}  c5 {[%clk 0:02:54]} 10. O-O {[%clk 0:02:56]}  h6 {[%clk 0:02:52]} 11. Bh4 {[%clk 0:02:52]}  Bb7 {[%clk 0:02:52]} 12. Rfd1 {[%clk 0:02:52]}  Rc8 {[%clk 0:02:52]} 13. Qa4 {[%clk 0:02:44]}  a6 {[%clk 0:02:41]} 14. Bxa6 {[%clk 0:02:27]}  Ra8 {[%clk 0:02:38]} 15. Bxb7 {[%clk 0:02:27]}  Rxa4 {[%clk 0:02:38]} 16. Nxa4 {[%clk 0:02:27]}  c4 {[%clk 0:01:52]} 17. Nc3 {[%clk 0:02:24]}  g5 {[%clk 0:01:29]} 18. Bg3 {[%clk 0:02:23]}  Nb8 {[%clk 0:01:29]} 19. Bxb8 {[%clk 0:02:11]}  Qxb8 {[%clk 0:01:30]} 20. Bxd5 {[%clk 0:02:11]}  b5 {[%clk 0:01:25]} 21. a3 {[%clk 0:02:00]}  Rc8 {[%clk 0:01:09]} 22. Ne5 {[%clk 0:01:59]}  Bd6 {[%clk 0:01:05]} 23. Bxf7+ {[%clk 0:01:44]}  Kg7 {[%clk 0:01:05]} 24. Be6 {[%clk 0:01:44]}  Re8 {[%clk 0:01:03]} 25. Bf5 {[%clk 0:01:40]}  Bxe5 {[%clk 0:00:57]} 26. dxe5 {[%clk 0:01:40]}  Qxe5 {[%clk 0:00:58]} 27. Bc2 {[%clk 0:01:36]}  Ng4 {[%clk 0:00:38]} 28. g3 {[%clk 0:01:33]}  Rf8 {[%clk 0:00:38]} 29. Rd2 {[%clk 0:01:10]}  h5 {[%clk 0:00:23]} 30. Rf1 {[%clk 0:00:50]}  h4 {[%clk 0:00:19]} 31. Rd5 {[%clk 0:00:49]}  Qe7 {[%clk 0:00:12]} 32. Ne4 {[%clk 0:00:47]}  Ne5 {[%clk 0:00:07]} 33. f4 {[%clk 0:00:43]}  hxg3 {[%clk 0:00:06]} 34. hxg3 {[%clk 0:00:40]}  gxf4 {[%clk 0:00:05]} 35. gxf4 {[%clk 0:00:39]}  Nf7 {[%clk 0:00:04]} 36. Kf2 {[%clk 0:00:32]}  Qh4+ {[%clk 0:00:03]} 37. Ke2 {[%clk 0:00:33]}  Qh2+ {[%clk 0:00:02]} 38. Rf2 {[%clk 0:00:33]}  Qh5+ {[%clk 0:00:00]} 39. Rxh5 {[%clk 0:00:32]} 1-0


[Site "https://www.chess.com"]

[Event "Titled Tuesday Blitz June 20 Early 2023"]
[White "Druska, Juraj"]
[Black "Bruedigam, Martin"]
[WhiteFideId "14915650"]
[BlackFideId "24608033"]
[WhiteElo "2415"]
[BlackElo "2331"]
[Result "1/2-1/2"]
[Round "9"]
[TimeControl "180+2"]
[Date "2023.06.20"]
[WhiteClock "0:00:05"]
[BlackClock "0:00:11"]
[Board "64"]

1. c4 {[%clk 0:03:00]}  e5 {[%clk 0:02:59]} 2. Nc3 {[%clk 0:02:59]}  Bb4 {[%clk 0:03:00]} 3. Nd5 {[%clk 0:02:57]}  Be7 {[%clk 0:02:59]} 4. g3 {[%clk 0:02:57]}  Nf6 {[%clk 0:03:00]} 5. Nxe7 {[%clk 0:02:56]}  Qxe7 {[%clk 0:03:01]} 6. Bg2 {[%clk 0:02:56]}  O-O {[%clk 0:03:01]} 7. Nf3 {[%clk 0:02:56]}  c6 {[%clk 0:02:58]} 8. O-O {[%clk 0:02:56]}  d5 {[%clk 0:02:58]} 9. d3 {[%clk 0:02:51]}  h6 {[%clk 0:02:51]} 10. b3 {[%clk 0:02:50]}  Bg4 {[%clk 0:02:41]} 11. h3 {[%clk 0:02:48]}  Bh5 {[%clk 0:02:39]} 12. Bb2 {[%clk 0:02:43]}  d4 {[%clk 0:02:29]} 13. a4 {[%clk 0:02:42]}  a5 {[%clk 0:02:24]} 14. Nd2 {[%clk 0:02:03]}  c5 {[%clk 0:02:17]} 15. g4 {[%clk 0:01:51]}  Bg6 {[%clk 0:02:16]} 16. f3 {[%clk 0:01:51]}  Ra6 {[%clk 0:02:13]} 17. Ne4 {[%clk 0:01:49]}  Nc6 {[%clk 0:02:01]} 18. Bc1 {[%clk 0:01:45]}  Rb6 {[%clk 0:02:00]} 19. Bd2 {[%clk 0:01:42]}  Nd7 {[%clk 0:01:56]} 20. Rb1 {[%clk 0:01:40]}  f6 {[%clk 0:01:54]} 21. Qe1 {[%clk 0:01:33]}  Ra6 {[%clk 0:01:34]} 22. Qg3 {[%clk 0:01:28]}  Bxe4 {[%clk 0:01:31]} 23. fxe4 {[%clk 0:01:27]}  g5 {[%clk 0:01:30]} 24. h4 {[%clk 0:01:25]}  Kg7 {[%clk 0:01:30]} 25. Kf2 {[%clk 0:01:19]}  Nd8 {[%clk 0:01:29]} 26. Rh1 {[%clk 0:01:19]}  Ne6 {[%clk 0:01:29]} 27. Rh2 {[%clk 0:01:18]}  Rh8 {[%clk 0:01:29]} 28. Rbh1 {[%clk 0:01:18]}  Nf4 {[%clk 0:01:15]} 29. hxg5 {[%clk 0:01:14]}  fxg5 {[%clk 0:01:16]} 30. Rb1 {[%clk 0:01:06]}  b6 {[%clk 0:01:13]} 31. Rbh1 {[%clk 0:01:04]}  Raa8 {[%clk 0:01:09]} 32. Ke1 {[%clk 0:01:02]}  Raf8 {[%clk 0:01:09]} 33. Kd1 {[%clk 0:01:00]}  Rf6 {[%clk 0:01:05]} 34. Kc2 {[%clk 0:00:57]}  Nf8 {[%clk 0:01:06]} 35. Bf3 {[%clk 0:00:55]}  N8g6 {[%clk 0:01:05]} 36. Bc1 {[%clk 0:00:49]}  Nh4 {[%clk 0:01:03]} 37. Rxh4 {[%clk 0:00:48]}  gxh4 {[%clk 0:01:03]} 38. Rxh4 {[%clk 0:00:48]}  Rg6 {[%clk 0:00:59]} 39. Qh2 {[%clk 0:00:44]}  Qf6 {[%clk 0:00:56]} 40. Bd2 {[%clk 0:00:43]}  Rf8 {[%clk 0:00:51]} 41. Be1 {[%clk 0:00:42]}  Ne6 {[%clk 0:00:45]} 42. Bg3 {[%clk 0:00:41]}  Nf4 {[%clk 0:00:44]} 43. Qh1 {[%clk 0:00:38]}  Kf7 {[%clk 0:00:35]} 44. Rh2 {[%clk 0:00:34]}  Ke8 {[%clk 0:00:30]} 45. Bh4 {[%clk 0:00:31]}  Qg7 {[%clk 0:00:24]} 46. Be1 {[%clk 0:00:26]}  Kd7 {[%clk 0:00:24]} 47. Rh4 {[%clk 0:00:25]}  Kc7 {[%clk 0:00:23]} 48. Rh2 {[%clk 0:00:24]}  Kb7 {[%clk 0:00:23]} 49. Qf1 {[%clk 0:00:22]}  Ka6 {[%clk 0:00:21]} 50. Qf2 {[%clk 0:00:22]}  Rgf6 {[%clk 0:00:21]} 51. Qh4 {[%clk 0:00:22]}  Ne6 {[%clk 0:00:19]} 52. Bd2 {[%clk 0:00:21]}  Ng5 {[%clk 0:00:19]} 53. Rf2 {[%clk 0:00:04]}  Nxf3 {[%clk 0:00:17]} 54. Rxf3 {[%clk 0:00:04]}  Rxf3 {[%clk 0:00:10]} 55. Bxh6 {[%clk 0:00:04]}  Qh8 {[%clk 0:00:10]} 56. exf3 {[%clk 0:00:03]}  Rxf3 {[%clk 0:00:11]} 57. g5 {[%clk 0:00:03]}  Qh7 {[%clk 0:00:10]} 58. Qg4 {[%clk 0:00:03]}  Qf7 {[%clk 0:00:10]} 59. Qc8+ {[%clk 0:00:03]}  Ka7 {[%clk 0:00:09]} 60. g6 {[%clk 0:00:03]}  Rf2+ {[%clk 0:00:09]} 61. Bd2 {[%clk 0:00:03]}  Qxg6 {[%clk 0:00:09]} 62. Qc7+ {[%clk 0:00:03]}  Ka6 {[%clk 0:00:10]} 63. Qc8+ {[%clk 0:00:04]}  Ka7 {[%clk 0:00:10]} 64. Qc7+ {[%clk 0:00:04]}  Ka6 {[%clk 0:00:10]} 65. Qc8+ {[%clk 0:00:05]}  Ka7 {[%clk 0:00:11]} 1/2-1/2


[Site "https://www.chess.com"]

[Event "Titled Tuesday Blitz June 20 Early 2023"]
[White "Korchmar, Vasiliy"]
[Black "Vyatkin, Dmitry"]
[WhiteFideId "24131750"]
[BlackFideId "4171900"]
[WhiteElo "2370"]
[BlackElo "2279"]
[Result "1-0"]
[Round "9"]
[TimeControl "180+2"]
[Date "2023.06.20"]
[WhiteClock "0:00:24"]
[BlackClock "0:00:05"]
[Board "66"]

1. e4 {[%clk 0:02:54]}  e6 {[%clk 0:02:59]} 2. d4 {[%clk 0:02:52]}  d5 {[%clk 0:03:00]} 3. e5 {[%clk 0:02:50]}  c5 {[%clk 0:02:59]} 4. c3 {[%clk 0:02:50]}  Nc6 {[%clk 0:02:59]} 5. Nf3 {[%clk 0:02:49]}  Bd7 {[%clk 0:02:59]} 6. Be2 {[%clk 0:02:49]}  f6 {[%clk 0:02:56]} 7. O-O {[%clk 0:02:48]}  fxe5 {[%clk 0:02:55]} 8. dxe5 {[%clk 0:02:46]}  Qc7 {[%clk 0:02:55]} 9. c4 {[%clk 0:02:41]}  d4 {[%clk 0:02:53]} 10. Bf4 {[%clk 0:02:39]}  Nge7 {[%clk 0:02:45]} 11. Nbd2 {[%clk 0:02:38]}  Ng6 {[%clk 0:02:44]} 12. Bg3 {[%clk 0:02:38]}  Be7 {[%clk 0:02:41]} 13. Ne4 {[%clk 0:02:36]}  O-O {[%clk 0:02:36]} 14. Bd3 {[%clk 0:02:34]}  Nf4 {[%clk 0:02:36]} 15. Neg5 {[%clk 0:02:20]}  g6 {[%clk 0:02:26]} 16. h4 {[%clk 0:02:13]}  Kg7 {[%clk 0:02:13]} 17. Re1 {[%clk 0:02:06]}  h6 {[%clk 0:02:04]} 18. Ne4 {[%clk 0:02:06]}  Nxe5 {[%clk 0:01:58]} 19. Nxe5 {[%clk 0:01:43]}  Qxe5 {[%clk 0:01:58]} 20. Qg4 {[%clk 0:01:35]}  Qf5 {[%clk 0:01:51]} 21. Qf3 {[%clk 0:01:25]}  Bc6 {[%clk 0:01:35]} 22. Kh2 {[%clk 0:01:15]}  g5 {[%clk 0:01:31]} 23. Bxf4 {[%clk 0:00:37]}  Qxf4+ {[%clk 0:01:30]} 24. Qxf4 {[%clk 0:00:37]}  Rxf4 {[%clk 0:01:30]} 25. hxg5 {[%clk 0:00:38]}  hxg5 {[%clk 0:01:29]} 26. Ng3 {[%clk 0:00:38]}  Rh8+ {[%clk 0:01:25]} 27. Kg1 {[%clk 0:00:38]}  Kf7 {[%clk 0:01:12]} 28. Be4 {[%clk 0:00:35]}  Bxe4 {[%clk 0:00:46]} 29. Nxe4 {[%clk 0:00:36]}  g4 {[%clk 0:00:40]} 30. Rad1 {[%clk 0:00:29]}  Rf5 {[%clk 0:00:41]} 31. b4 {[%clk 0:00:28]}  b6 {[%clk 0:00:37]} 32. bxc5 {[%clk 0:00:27]}  bxc5 {[%clk 0:00:33]} 33. Rb1 {[%clk 0:00:27]}  Rfh5 {[%clk 0:00:34]} 34. Ng3 {[%clk 0:00:26]}  R5h6 {[%clk 0:00:33]} 35. Rb7 {[%clk 0:00:27]}  Kf6 {[%clk 0:00:33]} 36. Rxa7 {[%clk 0:00:26]}  Bd6 {[%clk 0:00:32]} 37. Ra6 {[%clk 0:00:26]}  Bxg3 {[%clk 0:00:32]} 38. Rexe6+ {[%clk 0:00:22]}  Kg5 {[%clk 0:00:17]} 39. Rxh6 {[%clk 0:00:21]}  Rxh6 {[%clk 0:00:11]} 40. Rxh6 {[%clk 0:00:22]}  d3 {[%clk 0:00:09]} 41. fxg3 {[%clk 0:00:23]}  Kxh6 {[%clk 0:00:08]} 42. Kf2 {[%clk 0:00:23]}  Kg5 {[%clk 0:00:08]} 43. Ke3 {[%clk 0:00:23]}  Kf5 {[%clk 0:00:05]} 44. Kxd3 {[%clk 0:00:24]} 1-0


[Site "https://www.chess.com"]

[Event "Titled Tuesday Blitz June 20 Early 2023"]
[White "Moskvin, Anatoly"]
[Black "Eugene, Floryan"]
[WhiteFideId "24199990"]
[BlackFideId "20694784"]
[WhiteElo "2104"]
[BlackElo "2369"]
[Result "0-1"]
[Round "9"]
[TimeControl "180+2"]
[Date "2023.06.20"]
[WhiteClock "0:00:06"]
[BlackClock "0:00:09"]
[Board "68"]

1. e4 {[%clk 0:03:00]}  c5 {[%clk 0:02:59]} 2. Nf3 {[%clk 0:03:01]}  Nc6 {[%clk 0:03:00]} 3. Bb5 {[%clk 0:03:00]}  g6 {[%clk 0:02:59]} 4. O-O {[%clk 0:03:01]}  Bg7 {[%clk 0:02:58]} 5. Re1 {[%clk 0:03:01]}  e5 {[%clk 0:02:57]} 6. c3 {[%clk 0:03:01]}  Nge7 {[%clk 0:02:52]} 7. d3 {[%clk 0:02:57]}  O-O {[%clk 0:02:44]} 8. Be3 {[%clk 0:02:57]}  d6 {[%clk 0:02:43]} 9. a4 {[%clk 0:02:45]}  f5 {[%clk 0:02:08]} 10. Ng5 {[%clk 0:02:18]}  f4 {[%clk 0:02:01]} 11. Bc4+ {[%clk 0:01:47]}  Kh8 {[%clk 0:02:00]} 12. Bc1 {[%clk 0:01:48]}  Qe8 {[%clk 0:01:59]} 13. Na3 {[%clk 0:01:31]}  Ng8 {[%clk 0:01:55]} 14. Nb5 {[%clk 0:00:52]}  Qe7 {[%clk 0:01:51]} 15. Nf3 {[%clk 0:00:29]}  a6 {[%clk 0:01:51]} 16. Na3 {[%clk 0:00:29]}  g5 {[%clk 0:01:52]} 17. Bd5 {[%clk 0:00:24]}  g4 {[%clk 0:01:50]} 18. Nd2 {[%clk 0:00:25]}  Qh4 {[%clk 0:01:39]} 19. Nf1 {[%clk 0:00:25]}  f3 {[%clk 0:01:35]} 20. Nc4 {[%clk 0:00:24]}  fxg2 {[%clk 0:01:27]} 21. Ng3 {[%clk 0:00:24]}  Rf6 {[%clk 0:00:47]} 22. Ne3 {[%clk 0:00:19]}  Nge7 {[%clk 0:00:44]} 23. Nxg2 {[%clk 0:00:18]}  Qh3 {[%clk 0:00:42]} 24. Bg5 {[%clk 0:00:16]}  Rg6 {[%clk 0:00:35]} 25. Qd2 {[%clk 0:00:17]}  Bd7 {[%clk 0:00:33]} 26. Ne3 {[%clk 0:00:04]}  Rf8 {[%clk 0:00:32]} 27. Nef5 {[%clk 0:00:05]}  Nxf5 {[%clk 0:00:23]} 28. exf5 {[%clk 0:00:06]}  Bxf5 {[%clk 0:00:23]} 29. Nxf5 {[%clk 0:00:06]}  Rxf5 {[%clk 0:00:22]} 30. Be3 {[%clk 0:00:07]}  e4 {[%clk 0:00:17]} 31. Bxe4 {[%clk 0:00:07]}  Ne5 {[%clk 0:00:10]} 32. Bg2 {[%clk 0:00:07]}  Nf3+ {[%clk 0:00:10]} 33. Kf1 {[%clk 0:00:08]}  Nxd2+ {[%clk 0:00:09]} 34. Bxd2 {[%clk 0:00:06]}  Qxd3+ {[%clk 0:00:09]} 0-1


[Site "https://www.chess.com"]

[Event "Titled Tuesday Blitz June 20 Early 2023"]
[White "Jovic, Stanoje"]
[Black "Aldokhin, Ivan"]
[WhiteFideId "905020"]
[BlackFideId "24115720"]
[WhiteElo "2236"]
[BlackElo "2322"]
[Result "1-0"]
[Round "9"]
[TimeControl "180+2"]
[Date "2023.06.20"]
[WhiteClock "0:00:07"]
[BlackClock "0:00:00"]
[Board "70"]

1. c4 {[%clk 0:03:00]}  Nf6 {[%clk 0:02:59]} 2. g3 {[%clk 0:03:01]}  g6 {[%clk 0:03:00]} 3. Bg2 {[%clk 0:03:01]}  Bg7 {[%clk 0:03:01]} 4. Nc3 {[%clk 0:03:01]}  O-O {[%clk 0:03:01]} 5. Nf3 {[%clk 0:03:01]}  d6 {[%clk 0:03:02]} 6. O-O {[%clk 0:03:01]}  Nc6 {[%clk 0:03:03]} 7. d3 {[%clk 0:03:01]}  e6 {[%clk 0:02:55]} 8. e4 {[%clk 0:02:58]}  d5 {[%clk 0:02:54]} 9. e5 {[%clk 0:02:55]}  Nd7 {[%clk 0:02:44]} 10. cxd5 {[%clk 0:02:52]}  exd5 {[%clk 0:02:35]} 11. d4 {[%clk 0:02:51]}  Nb6 {[%clk 0:02:32]} 12. Bg5 {[%clk 0:02:50]}  f6 {[%clk 0:02:30]} 13. exf6 {[%clk 0:02:50]}  Bxf6 {[%clk 0:02:31]} 14. Bh6 {[%clk 0:02:46]}  Rf7 {[%clk 0:01:52]} 15. h3 {[%clk 0:02:44]}  Bf5 {[%clk 0:01:46]} 16. Re1 {[%clk 0:02:40]}  Qd7 {[%clk 0:01:13]} 17. g4 {[%clk 0:02:37]}  Be6 {[%clk 0:01:13]} 18. Ne5 {[%clk 0:02:30]}  Nxe5 {[%clk 0:01:07]} 19. dxe5 {[%clk 0:02:28]}  Bg7 {[%clk 0:00:51]} 20. Bxg7 {[%clk 0:02:23]}  Kxg7 {[%clk 0:00:51]} 21. a4 {[%clk 0:02:03]}  a5 {[%clk 0:00:43]} 22. b3 {[%clk 0:02:00]}  Raf8 {[%clk 0:00:42]} 23. Ra2 {[%clk 0:01:59]}  Qe7 {[%clk 0:00:37]} 24. Qd4 {[%clk 0:01:46]}  Rf4 {[%clk 0:00:30]} 25. Qd1 {[%clk 0:01:35]}  Qc5 {[%clk 0:00:29]} 26. Re3 {[%clk 0:01:17]}  Rxf2 {[%clk 0:00:26]} 27. Rxf2 {[%clk 0:01:11]}  Qxe3 {[%clk 0:00:26]} 28. Qd2 {[%clk 0:01:06]}  Qxe5 {[%clk 0:00:22]} 29. Rxf8 {[%clk 0:01:04]}  Kxf8 {[%clk 0:00:23]} 30. Nb5 {[%clk 0:01:00]}  Qa1+ {[%clk 0:00:17]} 31. Bf1 {[%clk 0:00:52]}  Qe5 {[%clk 0:00:09]} 32. Qxa5 {[%clk 0:00:36]}  Qe3+ {[%clk 0:00:09]} 33. Kg2 {[%clk 0:00:36]}  Qe4+ {[%clk 0:00:04]} 34. Kf2 {[%clk 0:00:33]}  Qf4+ {[%clk 0:00:03]} 35. Ke1 {[%clk 0:00:31]}  d4 {[%clk 0:00:03]} 36. Qb4+ {[%clk 0:00:30]}  Kf7 {[%clk 0:00:03]} 37. Qxd4 {[%clk 0:00:29]}  Qc1+ {[%clk 0:00:03]} 38. Kf2 {[%clk 0:00:28]}  Qc2+ {[%clk 0:00:03]} 39. Be2 {[%clk 0:00:27]}  Bxb3 {[%clk 0:00:03]} 40. Qf4+ {[%clk 0:00:26]}  Ke7 {[%clk 0:00:02]} 41. Nxc7 {[%clk 0:00:22]}  Qc5+ {[%clk 0:00:02]} 42. Kg3 {[%clk 0:00:21]}  Bxa4 {[%clk 0:00:01]} 43. Bf3 {[%clk 0:00:20]}  Qd6 {[%clk 0:00:01]} 44. Bxb7 {[%clk 0:00:17]}  Qxf4+ {[%clk 0:00:01]} 45. Kxf4 {[%clk 0:00:18]}  Kd6 {[%clk 0:00:01]} 46. Na6 {[%clk 0:00:17]}  Bb5 {[%clk 0:00:02]} 47. Nb4 {[%clk 0:00:17]}  Bf1 {[%clk 0:00:02]} 48. h4 {[%clk 0:00:16]}  Kc5 {[%clk 0:00:03]} 49. Nc2 {[%clk 0:00:16]}  Kd6 {[%clk 0:00:03]} 50. Ne3 {[%clk 0:00:17]}  Bc4 {[%clk 0:00:02]} 51. Be4 {[%clk 0:00:17]}  Ke7 {[%clk 0:00:02]} 52. g5 {[%clk 0:00:17]}  Bg8 {[%clk 0:00:02]} 53. Ng4 {[%clk 0:00:17]}  Nd7 {[%clk 0:00:02]} 54. Bc6 {[%clk 0:00:16]}  Nc5 {[%clk 0:00:01]} 55. Nf6 {[%clk 0:00:15]}  Ne6+ {[%clk 0:00:01]} 56. Ke5 {[%clk 0:00:16]}  Bf7 {[%clk 0:00:01]} 57. Nxh7 {[%clk 0:00:16]}  Nd8 {[%clk 0:00:01]} 58. Be4 {[%clk 0:00:15]}  Be8 {[%clk 0:00:01]} 59. Nf6 {[%clk 0:00:15]}  Bf7 {[%clk 0:00:02]} 60. Ng4 {[%clk 0:00:15]}  Ne6 {[%clk 0:00:02]} 61. Nf2 {[%clk 0:00:15]}  Nc5 {[%clk 0:00:02]} 62. Nd3 {[%clk 0:00:14]}  Nd7+ {[%clk 0:00:02]} 63. Kf4 {[%clk 0:00:14]}  Kd6 {[%clk 0:00:02]} 64. Bf3 {[%clk 0:00:13]}  Ke7 {[%clk 0:00:02]} 65. Nf2 {[%clk 0:00:14]}  Nc5 {[%clk 0:00:02]} 66. Ne4 {[%clk 0:00:14]}  Nd3+ {[%clk 0:00:02]} 67. Ke3 {[%clk 0:00:13]}  Ne5 {[%clk 0:00:03]} 68. Ng3 {[%clk 0:00:13]}  Nc4+ {[%clk 0:00:03]} 69. Kd4 {[%clk 0:00:13]}  Nd2 {[%clk 0:00:03]} 70. Be4 {[%clk 0:00:13]}  Nb3+ {[%clk 0:00:02]} 71. Ke5 {[%clk 0:00:13]}  Nc5 {[%clk 0:00:03]} 72. Ne2 {[%clk 0:00:13]}  Nd7+ {[%clk 0:00:03]} 73. Kd4 {[%clk 0:00:12]}  Kd6 {[%clk 0:00:03]} 74. Nf4 {[%clk 0:00:12]}  Ne5 {[%clk 0:00:04]} 75. Bg2 {[%clk 0:00:09]}  Ng4 {[%clk 0:00:04]} 76. Kd3 {[%clk 0:00:07]}  Ne5+ {[%clk 0:00:04]} 77. Ke3 {[%clk 0:00:07]}  Ng4+ {[%clk 0:00:04]} 78. Kf3 {[%clk 0:00:08]}  Ne5+ {[%clk 0:00:05]} 79. Kg3 {[%clk 0:00:08]}  Nc4 {[%clk 0:00:05]} 80. Be4 {[%clk 0:00:08]}  Nd2 {[%clk 0:00:05]} 81. Bxg6 {[%clk 0:00:07]}  Bc4 {[%clk 0:00:04]} 82. h5 {[%clk 0:00:07]}  Ke7 {[%clk 0:00:03]} 83. h6 {[%clk 0:00:07]}  Kf8 {[%clk 0:00:04]} 84. Nh5 {[%clk 0:00:07]}  Ba2 {[%clk 0:00:00]} 85. h7 {[%clk 0:00:07]} 1-0


[Site "https://www.chess.com"]